lending/lending_fUSD_20240610
["ID","MTS","AMOUNT","RATE_DAILY","PERIOD"]
[329008189,1718059838982,-1856.5631075,0.00015,2]
[329008190,1718059839007,-0.00363133,0.00015,2]
[329008191,1718059839019,-1010.92811315,0.00015,2]
[329008192,1718059839032,-426.35735425,0.00015,2]
[329008193,1718059839044,-1043.4,0.00015,2]
[329008194,1718059839056,-572.78982099,0.00015,2]
[329008195,1718059839106,-926.890117,0.00015,2]
[329008196,1718059839119,-2412.18900786,0.00015,2]
[329008197,1718059839131,-320.8204998,0.00015,2]
[329008198,1718059839143,-857.48160053,0.00015,2]
[329008199,1718059839155,-9719.68674151,0.00015,2]
[329008200,1718059839169,-19077.77120903,0.00015,2]
[329008201,1718059839179,-306.01,0.00015014,2]
[329008202,1718059839191,-152.43950843,0.00015062,2]
[329008203,1718059839200,-155.68,0.00015162,2]
[329008204,1718059839211,-210.0,0.00015495,2]
[329008205,1718059839221,-600.0,0.00016162,2]
[329008206,1718059839231,-347.82842248,0.0001632,2]
[329008207,1718059839244,-362.69,0.00016574,2]
[329008208,1718059839255,-180.0,0.00017044,2]
[329008209,1718059839266,-570.71707961,0.00017259,7]
[329008210,1718059839276,-306.01,0.00017278,2]
[329008211,1718059839288,-380.91,0.00017344,2]
[329008212,1718059839299,-380.91,0.00017391,2]
[329008213,1718059839309,-380.91,0.00017439,2]
[329008214,1718059839319,-380.91,0.00017486,2]
[329008215,1718059839329,-380.91,0.00017534,2]
[329008216,1718059839340,-380.91,0.00017581,2]
[329008217,1718059839350,-380.91,0.00017629,2]
[329008218,1718059839360,-441.32,0.00017671,3]
[329008219,1718059839371,-380.91,0.00017677,2]
[329008220,1718059839383,-347.82842248,0.00017678,2]
[329008221,1718059839398,-276.29233269,0.00017724,2]
[329008222,1718059839411,-104.61766731,0.00017724,2]
[329008223,1718059839421,-380.91,0.00017772,2]
[329008224,1718059839432,-380.91,0.00017819,2]
[329008226,1718059839445,-380.91,0.00017867,2]
[329008227,1718059839456,-380.91,0.00017914,2]
[329008229,1718059839466,-241.48672499,0.00017958,2]
[329008231,1718059839479,-358.51327501,0.00017958,2]
[329008233,1718059839489,-380.91,0.00017962,2]
[329008235,1718059839499,-376.69811164,0.00018009,2]
[329008238,1718059839512,-4.21188836,0.00018009,2]
[329008240,1718059839523,-380.91,0.00018057,2]
[329008242,1718059839534,-380.91,0.00018105,2]
[329008244,1718059839545,-380.91,0.00018152,2]
[329008246,1718059839556,-380.91,0.000182,2]
[329008247,1718059839566,-380.91,0.00018247,2]
[329008250,1718059839576,-150.0,0.0001891,2]
[329008251,1718059839586,-347.82842248,0.00019036,2]
[329008253,1718059839597,-362.69,0.00019313,2]
[329008255,1718059839606,-306.01,0.00019541,2]
[329008257,1718059839617,-600.0,0.00019754,2]
[329008259,1718059839627,-226.69645122,0.000201,2]
[329008261,1718059839637,-347.82842248,0.00020394,2]
[329008264,1718059839648,-600.0,0.0002155,2]
[329008265,1718059839658,-347.82842248,0.00021752,2]
[329008267,1718059839667,-306.01,0.00021805,2]
[329008269,1718059839678,-263.85,0.00021918,2]
[329008271,1718059839687,-347.82842248,0.0002311,2]
[329008273,1718059839698,-306.01,0.00024069,2]
[329008275,1718059839708,-158.12,0.00024384,2]
[329008277,1718059839719,-225.5,0.00024384,2]
[329008279,1718059839729,-347.82842248,0.00024468,2]
[329008281,1718059839740,-119.86393935,0.00024707,2]
[329008535,1718059842444,-1337.33567298,0.00016161,2]
[329008537,1718059842456,-2954.50184287,0.00016161,2]
[329008538,1718059842474,-67.09606065,0.00024707,2]
[329008540,1718059842484,-156.98222615,0.00024798,2]
[329008542,1718059842494,-156.98222613,0.00024798,2]
[329008544,1718059842503,-156.98222613,0.00024798,2]
[329008545,1718059842514,-156.98222613,0.00024798,2]
[329008547,1718059842523,-156.98222613,0.00024798,2]
[329008549,1718059842533,-161.72062065,0.00024799,2]
[329008551,1718059842543,-400.0,0.00025194,2]
[329008553,1718059842552,-347.82842248,0.00025826,2]
[329008555,1718059842563,-476.56,0.00026301,3]
[329008557,1718059842573,-307.45960582,0.00026332,2]
[329008559,1718059842583,-306.01,0.00026333,2]
[329008561,1718059842593,-154.45826535,0.00026712,2]
[329008562,1718059842602,-154.45826535,0.00026814,2]
[329008564,1718059842612,-160.6958182,0.00026953,2]
[329008566,1718059842621,-154.45826535,0.00027114,2]
[329008568,1718059842631,-347.82842248,0.00027184,2]
[329008570,1718059842640,-338.68648196,0.00027278,2]
[329008572,1718059842650,-205.67039254,0.00027278,2]
[329008574,1718059842660,-154.45826535,0.0002728,2]
[329008575,1718059842671,-156.98222613,0.00027295,2]
[329008577,1718059842680,-258.13957769,0.000273,2]
[329008579,1718059842690,-155.82683329,0.00027314,2]
[329008581,1718059842700,-150.4,0.00027387,2]
[329008583,1718059842709,-10522.25,0.00027397,2]
[329008585,1718059842719,-154.45826535,0.00027453,2]
[329008586,1718059842728,-300.0,0.000276,2]
[329008588,1718059842738,-300.0,0.000276,2]
[329008590,1718059842748,-300.0,0.000276,2]
[329008592,1718059842758,-154.45826535,0.00027676,2]
[329008594,1718059842768,-324.133,0.00027958,2]
[329008596,1718059842778,-708.857,0.00027958,2]
[329008598,1718059842787,-69.29025515,0.00027958,2]
[329008660,1718059843487,-250.45974485,0.00027958,2]
[329008661,1718059843498,-150.192,0.00027958,2]
[329008662,1718059843507,-1065.0,0.00027958,2]
[329008663,1718059843517,-154.45826535,0.00028009,2]
[329008664,1718059843527,-154.45826535,0.00028151,2]
[329008665,1718059843537,-1750.76628445,0.00028153,2]
[329008666,1718059843548,-1267.82998508,0.00028153,2]
[329008667,1718059843560,-422.85267956,0.00028153,2]
[329008700,1718059843938,-2243.19295853,0.00028153,2]
[329008702,1718059843951,-1815.35809238,0.00028153,2]
[329008704,1718059843960,-400.0,0.00028343,2]
[329008706,1718059843971,-1127.34530184,0.0002846,2]
[329008708,1718059843980,-1041.41520031,0.0002846,2]
[329008709,1718059843990,-154.06645658,0.00028508,2]
[329008711,1718059843999,-160.6958182,0.00028527,2]
[329008713,1718059844010,-347.82842248,0.00028542,2]
[329008715,1718059844020,-306.01,0.00028597,2]
[329008717,1718059844029,-500.0,0.00028809,2]
[329008719,1718059844039,-369.0,0.0002883,2]
[329008721,1718059844048,-151.0,0.00028887,2]
[329008723,1718059844058,-154.06645658,0.00028939,2]
[329008724,1718059844067,-9341.2151,0.0002894,2]
[329008726,1718059844078,-291.361016,0.00028941,7]
[329008728,1718059844088,-1000.0,0.00028999,2]
[329008730,1718059844097,-151.0,0.00029027,7]
[329008732,1718059844107,-155.622328,0.00029027,7]
[329008734,1718059844117,-151.0,0.00029027,7]
[329008736,1718059844127,-151.0,0.00029027,7]
[329008738,1718059844136,-200.0,0.00029031,2]
[329008740,1718059844146,-500.0,0.00029031,2]
[329008742,1718059844155,-278.61507,0.00029031,2]
[329008744,1718059844166,-150.4,0.00029031,2]
[329008746,1718059844175,-150.4,0.00029031,2]
[329008748,1718059844185,-1872.7089107,0.00029033,2]
[329008750,1718059844197,-7179.2875893,0.00029033,2]
[329008752,1718059844208,-500.0,0.00029041,4]
[329008754,1718059844218,-286.31,0.00029041,4]
[329008756,1718059844232,-500.0,0.00029041,4]
[329008758,1718059844242,-500.0,0.00029041,4]
[329008760,1718059844252,-225.22,0.00029041,4]
[329008762,1718059844262,-532.18,0.00029041,4]
[329008764,1718059844273,-500.0,0.00029041,4]
[329008766,1718059844283,-500.0,0.00029041,4]
[329008768,1718059844293,-500.0,0.00029041,4]
[329008770,1718059844303,-500.0,0.00029041,4]
[329008772,1718059844313,-500.0,0.00029041,4]
[329008774,1718059844324,-184.84,0.00029041,4]
[329008776,1718059844334,-500.0,0.00029041,4]
[329008777,1718059844344,-500.0,0.00029041,4]
[329008779,1718059844355,-422.15,0.00029041,4]
[329008781,1718059844366,-500.0,0.00029041,4]
[329008783,1718059844376,-369.96939652,0.00029041,4]
[329008785,1718059844386,-500.0,0.00029041,4]
[329008787,1718059844402,-500.0,0.00029041,4]
[329008789,1718059844412,-500.0,0.00029041,4]
[329008791,1718059844422,-500.0,0.00029041,4]
[329008793,1718059844433,-500.0,0.00029041,4]
[329008795,1718059844448,-523.86226275,0.00029041,4]
[329008797,1718059844459,-500.0,0.00029041,4]
[329008799,1718059844470,-305.86,0.00029041,4]
[329008801,1718059844481,-500.0,0.00029041,4]
[329008803,1718059844492,-500.0,0.00029041,4]
[329008805,1718059844502,-500.0,0.00029041,4]
[329008807,1718059844513,-155.5,0.00029041,4]
[329008809,1718059844524,-500.0,0.00029041,4]
[329008811,1718059844534,-500.0,0.00029041,4]
[329008813,1718059844545,-500.0,0.00029041,4]
[329008815,1718059844555,-500.0,0.00029041,4]
[329008817,1718059844566,-500.0,0.00029041,4]
[329008819,1718059844577,-500.0,0.00029041,4]
[329008821,1718059844588,-277.3,0.00029041,4]
[329008823,1718059844598,-500.0,0.00029041,4]
[329008825,1718059844609,-402.94,0.00029041,4]
[329008827,1718059844619,-500.0,0.00029041,4]
[329008829,1718059844631,-500.0,0.00029041,4]
[329008830,1718059844642,-500.0,0.00029041,4]
[329008832,1718059844653,-423.18914546,0.00029041,4]
[329008834,1718059844663,-500.0,0.00029041,4]
[329008836,1718059844674,-500.0,0.00029041,4]
[329008838,1718059844685,-500.0,0.00029041,4]
[329008840,1718059844698,-500.0,0.00029041,4]
[329008842,1718059844708,-500.0,0.00029041,4]
[329008844,1718059844719,-500.0,0.00029041,4]
[329008846,1718059844729,-621.98,0.00029041,4]
[329008848,1718059844739,-500.0,0.00029041,4]
[329008850,1718059844750,-500.0,0.00029041,4]
[329008852,1718059844761,-448.26,0.00029041,4]
[329008854,1718059844772,-500.0,0.00029041,4]
[329008856,1718059844782,-500.0,0.00029041,4]
[329008858,1718059844794,-500.0,0.00029041,4]
[329008860,1718059844805,-500.0,0.00029041,4]
[329008862,1718059844815,-500.0,0.00029041,4]
[329008864,1718059844826,-500.0,0.00029041,4]
[329008866,1718059844836,-376.55,0.00029041,4]
[329008868,1718059844846,-500.0,0.00029041,4]
[329008870,1718059844855,-500.0,0.00029041,4]
[329008872,1718059844866,-152.93,0.00029041,4]
[329008874,1718059844876,-500.0,0.00029041,4]
[329008876,1718059844886,-500.0,0.00029041,4]
[329008878,1718059844897,-500.0,0.00029041,4]
[329008880,1718059844907,-500.0,0.00029041,4]
[329008882,1718059844917,-502.13,0.00029041,4]
[329008884,1718059844929,-500.0,0.00029041,4]
[329008886,1718059844939,-367.5,0.00029041,4]
[329008887,1718059844951,-565.89,0.00029041,4]
[329008889,1718059844961,-500.0,0.00029041,4]
[329008891,1718059844971,-500.0,0.00029041,4]
[329008893,1718059844981,-500.0,0.00029041,4]
[329008895,1718059844992,-523.61,0.00029041,4]
[329008897,1718059845002,-500.0,0.00029041,4]
[329008899,1718059845013,-500.0,0.00029041,4]
[329008901,1718059845024,-585.09,0.00029041,4]
[329008903,1718059845034,-500.0,0.00029041,4]
[329008905,1718059845044,-500.0,0.00029041,4]
[329008907,1718059845054,-500.0,0.00029041,4]
[329008909,1718059845064,-294.79634343,0.00029041,4]
[329008911,1718059845075,-500.0,0.00029041,4]
[329008913,1718059845085,-500.0,0.00029041,4]
[329008915,1718059845095,-287.63,0.00029041,4]
[329008917,1718059845105,-500.0,0.00029041,4]
[329008919,1718059845115,-500.0,0.00029041,4]
[329008921,1718059845125,-500.0,0.00029041,4]
[329008923,1718059845135,-500.0,0.00029041,4]
[329008925,1718059845145,-500.0,0.00029041,4]
[329008927,1718059845155,-500.0,0.00029041,4]
[329008929,1718059845165,-500.0,0.00029041,4]
[329008931,1718059845175,-500.0,0.00029041,4]
[329008933,1718059845186,-500.0,0.00029041,4]
[329008935,1718059845199,-500.0,0.00029041,4]
[329008937,1718059845209,-500.0,0.00029041,4]
[329008939,1718059845220,-500.0,0.00029041,4]
[329008941,1718059845230,-500.0,0.00029041,4]
[329008943,1718059845240,-500.0,0.00029041,4]
[329008945,1718059845250,-208.19,0.00029041,4]
[329008947,1718059845260,-500.0,0.00029041,4]
[329008961,1718059845397,-500.0,0.00029041,4]
[329008963,1718059845408,-500.0,0.00029041,4]
[329008965,1718059845420,-500.0,0.00029041,4]
[329008967,1718059845431,-334.64,0.00029041,4]
[329008969,1718059845446,-500.0,0.00029041,4]
[329008971,1718059845457,-382.53,0.00029041,4]
[329008973,1718059845468,-639.94,0.00029041,4]
[329008975,1718059845479,-500.0,0.00029041,4]
[329008977,1718059845489,-414.2,0.00029041,4]
[329008979,1718059845500,-500.0,0.00029041,4]
[329008981,1718059845511,-500.0,0.00029041,4]
[329008982,1718059845521,-500.0,0.00029041,4]
[329008984,1718059845531,-500.0,0.00029041,4]
[329008986,1718059845542,-500.0,0.00029041,4]
[329008988,1718059845552,-338.03,0.00029041,4]
[329008990,1718059845563,-500.0,0.00029041,4]
[329008992,1718059845574,-288.58,0.00029041,4]
[329008994,1718059845585,-500.0,0.00029041,4]
[329008996,1718059845597,-500.0,0.00029041,4]
[329008998,1718059845608,-500.0,0.00029041,4]
[329009000,1718059845618,-500.0,0.00029041,4]
[329009002,1718059845629,-500.0,0.00029041,4]
[329009004,1718059845640,-337.56,0.00029041,4]
[329009006,1718059845650,-500.0,0.00029041,4]
[329009008,1718059845661,-200.44,0.00029041,4]
[329009010,1718059845671,-500.0,0.00029041,4]
[329009012,1718059845682,-586.99,0.00029041,4]
[329009014,1718059845696,-500.0,0.00029041,4]
[329009016,1718059845706,-512.79946762,0.00029041,4]
[329009018,1718059845716,-500.0,0.00029041,4]
[329009020,1718059845727,-350.55,0.00029041,4]
[329009022,1718059845737,-207.24032679,0.00029041,4]
[329009024,1718059845749,-500.0,0.00029041,4]
[329009026,1718059845759,-500.0,0.00029041,4]
[329009028,1718059845770,-500.0,0.00029041,4]
[329009030,1718059845781,-500.0,0.00029041,4]
[329009032,1718059845791,-430.01,0.00029041,4]
[329009034,1718059845801,-500.0,0.00029041,4]
[329009036,1718059845811,-500.0,0.00029041,4]
[329009038,1718059845822,-500.0,0.00029041,4]
[329009040,1718059845832,-500.0,0.00029041,4]
[329009042,1718059845842,-500.0,0.00029041,4]
[329009044,1718059845853,-500.0,0.00029041,4]
[329009048,1718059845863,-500.0,0.00029041,4]
[329009050,1718059845874,-415.39,0.00029041,4]
[329009052,1718059845884,-500.0,0.00029041,4]
[329009054,1718059845894,-269.35,0.00029041,4]
[329009056,1718059845904,-500.0,0.00029041,4]
[329009058,1718059845914,-500.0,0.00029041,4]
[329009060,1718059845928,-645.23,0.00029041,4]
[329009062,1718059845938,-500.0,0.00029041,4]
[329009064,1718059845950,-500.0,0.00029041,4]
[329009066,1718059845961,-226.01,0.00029041,4]
[329009068,1718059845972,-500.0,0.00029041,4]
[329009070,1718059845983,-500.0,0.00029041,4]
[329009072,1718059845994,-500.0,0.00029041,4]
[329009074,1718059846004,-196.97197387,0.00029041,4]
[329009076,1718059846015,-500.0,0.00029041,4]
[329009078,1718059846026,-500.0,0.00029041,4]
[329009080,1718059846036,-500.0,0.00029041,4]
[329009082,1718059846046,-500.0,0.00029041,4]
[329009084,1718059846057,-500.0,0.00029041,4]
[329009086,1718059846067,-283.57,0.00029041,4]
[329009088,1718059846077,-500.0,0.00029041,4]
[329009090,1718059846088,-500.0,0.00029041,4]
[329009092,1718059846099,-500.0,0.00029041,4]
[329009094,1718059846109,-500.0,0.00029041,4]
[329009096,1718059846119,-500.0,0.00029041,4]
[329009097,1718059846129,-500.0,0.00029041,4]
[329009100,1718059846140,-630.26,0.00029041,4]
[329009101,1718059846150,-500.0,0.00029041,4]
[329009103,1718059846160,-500.0,0.00029041,4]
[329009105,1718059846171,-500.0,0.00029041,4]
[329009107,1718059846182,-460.78,0.00029041,4]
[329009110,1718059846193,-504.4838579,0.00029041,4]
[329009111,1718059846203,-500.0,0.00029041,4]
[329009114,1718059846214,-500.0,0.00029041,4]
[329009115,1718059846224,-500.0,0.00029041,4]
[329009117,1718059846235,-500.0,0.00029041,4]
[329009119,1718059846246,-219.79,0.00029041,4]
[329009121,1718059846256,-500.0,0.00029041,4]
[329009123,1718059846267,-510.71,0.00029041,4]
[329009125,1718059846277,-500.0,0.00029041,4]
[329009127,1718059846288,-500.0,0.00029041,4]
[329009129,1718059846298,-500.0,0.00029041,4]
[329009132,1718059846308,-500.0,0.00029041,4]
[329009133,1718059846319,-500.0,0.00029041,4]
[329009135,1718059846330,-500.0,0.00029041,4]
[329009138,1718059846340,-500.0,0.00029041,4]
[329009140,1718059846351,-500.0,0.00029041,4]
[329009142,1718059846361,-241.88,0.00029041,4]
[329009144,1718059846372,-500.0,0.00029041,4]
[329009145,1718059846384,-540.39,0.00029041,4]
[329009147,1718059846397,-500.0,0.00029041,4]
[329009148,1718059846409,-572.7,0.00029041,4]
[329009150,1718059846419,-500.0,0.00029041,4]
[329009152,1718059846430,-546.73,0.00029041,4]
[329009154,1718059846443,-585.26,0.00029041,4]
[329009156,1718059846454,-593.86,0.00029041,4]
[329009158,1718059846464,-500.0,0.00029041,4]
[329009160,1718059846474,-500.0,0.00029041,4]
[329009162,1718059846486,-158.17,0.00029041,4]
[329009164,1718059846496,-500.0,0.00029041,4]
[329009166,1718059846507,-500.0,0.00029041,4]
[329009168,1718059846518,-500.0,0.00029041,4]
[329009170,1718059846528,-500.0,0.00029041,4]
[329009172,1718059846540,-502.58473155,0.00029041,4]
[329009174,1718059846552,-500.0,0.00029041,4]
[329009176,1718059846564,-500.0,0.00029041,4]
[329009178,1718059846575,-500.0,0.00029041,4]
[329009180,1718059846586,-441.41,0.00029041,4]
[329009182,1718059846597,-197.03758661,0.00029041,4]
[329009184,1718059846607,-500.0,0.00029041,4]
[329009186,1718059846618,-500.0,0.00029041,4]
[329009188,1718059846629,-500.0,0.00029041,4]
[329009190,1718059846640,-500.0,0.00029041,4]
[329009192,1718059846650,-500.0,0.00029041,4]
[329009194,1718059846661,-500.0,0.00029041,4]
[329009196,1718059846671,-500.0,0.00029041,4]
[329009197,1718059846681,-500.0,0.00029041,4]
[329009199,1718059846693,-500.0,0.00029041,4]
[329009201,1718059846704,-500.0,0.00029041,4]
[329009203,1718059846714,-500.0,0.00029041,4]
[329009206,1718059846725,-500.0,0.00029041,4]
[329009207,1718059846736,-500.0,0.00029041,4]
[329009210,1718059846746,-410.5,0.00029041,4]
[329009212,1718059846757,-500.0,0.00029041,4]
[329009213,1718059846768,-500.0,0.00029041,4]
[329009215,1718059846778,-500.0,0.00029041,4]
[329009217,1718059846789,-500.0,0.00029041,4]
[329009219,1718059846800,-500.0,0.00029041,4]
[329009221,1718059846812,-500.0,0.00029041,4]
[329009223,1718059846823,-500.0,0.00029041,4]
[329009225,1718059846834,-500.0,0.00029041,4]
[329009227,1718059846845,-500.0,0.00029041,4]
[329009229,1718059846855,-500.0,0.00029041,4]
[329009231,1718059846866,-500.0,0.00029041,4]
[329009234,1718059846877,-270.87,0.00029041,4]
[329009236,1718059846888,-242.72,0.00029041,4]
[329009238,1718059846899,-500.0,0.00029041,4]
[329009240,1718059846910,-503.22799289,0.00029041,4]
[329009242,1718059846924,-500.0,0.00029041,4]
[329009244,1718059846935,-500.0,0.00029041,4]
[329009246,1718059846947,-500.0,0.00029041,4]
[329009247,1718059846958,-500.0,0.00029041,4]
[329009250,1718059846969,-500.0,0.00029041,4]
[329009252,1718059846980,-500.0,0.00029041,4]
[329009253,1718059846990,-500.0,0.00029041,4]
[329009255,1718059847001,-411.76,0.00029041,4]
[329009257,1718059847012,-500.0,0.00029041,4]
[329009258,1718059847022,-478.75154249,0.00029041,4]
[329009259,1718059847033,-500.0,0.00029041,4]
[329009260,1718059847044,-500.0,0.00029041,4]
[329009261,1718059847054,-500.0,0.00029041,4]
[329009262,1718059847064,-500.0,0.00029041,4]
[329009263,1718059847075,-161.58,0.00029041,4]
[329009264,1718059847085,-500.0,0.00029041,4]
[329009265,1718059847096,-500.0,0.00029041,4]
[329009266,1718059847107,-500.0,0.00029041,4]
[329009267,1718059847118,-567.31,0.00029041,4]
[329009268,1718059847129,-500.0,0.00029041,4]
[329009269,1718059847142,-500.0,0.00029041,4]
[329009271,1718059847153,-500.0,0.00029041,4]
[329009272,1718059847163,-500.0,0.00029041,4]
[329009274,1718059847173,-500.0,0.00029041,4]
[329009276,1718059847183,-500.0,0.00029041,4]
[329009278,1718059847194,-500.0,0.00029041,4]
[329009280,1718059847204,-218.81,0.00029041,4]
[329009282,1718059847214,-500.0,0.00029041,4]
[329009284,1718059847224,-500.0,0.00029041,4]
[329009286,1718059847235,-500.0,0.00029041,4]
[329009288,1718059847246,-218.89,0.00029041,4]
[329009290,1718059847257,-500.0,0.00029041,4]
[329009292,1718059847267,-500.0,0.00029041,4]
[329009294,1718059847278,-500.0,0.00029041,4]
[329009296,1718059847288,-500.0,0.00029041,4]
[329009298,1718059847298,-500.0,0.00029041,4]
[329009300,1718059847308,-500.0,0.00029041,4]
[329009302,1718059847319,-500.0,0.00029041,4]
[329009304,1718059847330,-500.0,0.00029041,4]
[329009306,1718059847340,-500.0,0.00029041,4]
[329009308,1718059847351,-500.0,0.00029041,4]
[329009310,1718059847361,-500.0,0.00029041,4]
[329009312,1718059847371,-348.60275476,0.00029041,4]
[329009314,1718059847381,-500.0,0.00029041,4]
[329009316,1718059847392,-500.0,0.00029041,4]
[329009318,1718059847407,-639.65,0.00029041,4]
[329009320,1718059847417,-506.84234807,0.00029041,4]
[329009321,1718059847427,-500.0,0.00029041,4]
[329009324,1718059847439,-500.0,0.00029041,4]
[329009325,1718059847451,-517.16,0.00029041,4]
[329009327,1718059847461,-500.0,0.00029041,4]
[329009329,1718059847473,-500.0,0.00029041,4]
[329009331,1718059847483,-500.0,0.00029041,4]
[329009333,1718059847493,-520.63,0.00029041,4]
[329009335,1718059847503,-515.53541432,0.00029041,4]
[329009337,1718059847513,-500.0,0.00029041,4]
[329009340,1718059847524,-500.0,0.00029041,4]
[329009343,1718059847534,-500.0,0.00029041,4]
[329009346,1718059847545,-465.14701388,0.00029041,4]
[329009349,1718059847555,-554.43,0.00029041,4]
[329009352,1718059847565,-500.0,0.00029041,4]
[329009356,1718059847575,-500.0,0.00029041,4]
[329009359,1718059847586,-500.0,0.00029041,4]
[329009363,1718059847596,-500.0,0.00029041,4]
[329009367,1718059847607,-505.99408772,0.00029041,4]
[329009371,1718059847618,-363.41,0.00029041,4]
[329009374,1718059847628,-500.0,0.00029041,4]
[329009378,1718059847639,-500.0,0.00029041,4]
[329009382,1718059847649,-500.0,0.00029041,4]
[329009386,1718059847659,-264.55,0.00029041,4]
[329009390,1718059847670,-500.0,0.00029041,4]
[329009394,1718059847680,-553.86,0.00029041,4]
[329009398,1718059847690,-500.0,0.00029041,4]
[329009401,1718059847701,-500.0,0.00029041,4]
[329009404,1718059847710,-261.26,0.00029041,4]
[329009407,1718059847720,-500.0,0.00029041,4]
[329009410,1718059847731,-500.0,0.00029041,4]
[329009412,1718059847741,-304.74189438,0.00029041,4]
[329009414,1718059847751,-500.0,0.00029041,4]
[329009416,1718059847761,-241.9,0.00029041,4]
[329009419,1718059847772,-500.0,0.00029041,4]
[329009421,1718059847782,-500.0,0.00029041,4]
[329009424,1718059847792,-500.0,0.00029041,4]
[329009426,1718059847803,-500.0,0.00029041,4]
[329009428,1718059847813,-500.0,0.00029041,4]
[329009429,1718059847825,-325.87898151,0.00029041,4]
[329009450,1718059848037,-174.12101849,0.00029041,4]
[329009463,1718059848167,-500.0,0.00029041,4]
[329009465,1718059848178,-254.96,0.00029041,4]
[329009467,1718059848189,-500.0,0.00029041,4]
[329009469,1718059848201,-500.0,0.00029041,4]
[329009472,1718059848211,-500.0,0.00029041,4]
[329009473,1718059848222,-500.0,0.00029041,4]
[329009476,1718059848233,-500.0,0.00029041,4]
[329009478,1718059848245,-500.0,0.00029041,4]
[329009480,1718059848256,-500.0,0.00029041,4]
[329009482,1718059848267,-500.0,0.00029041,4]
[329009484,1718059848277,-301.75,0.00029041,4]
[329009486,1718059848288,-502.76725702,0.00029041,4]
[329009488,1718059848298,-500.0,0.00029041,4]
[329009490,1718059848308,-500.0,0.00029041,4]
[329009492,1718059848318,-500.0,0.00029041,4]
[329009494,1718059848328,-462.11,0.00029041,4]
[329009495,1718059848339,-240.94,0.00029041,4]
[329009497,1718059848350,-500.0,0.00029041,4]
[329009499,1718059848361,-500.0,0.00029041,4]
[329009501,1718059848372,-500.0,0.00029041,4]
[329009503,1718059848383,-500.0,0.00029041,4]
[329009506,1718059848396,-500.0,0.00029041,4]
[329009507,1718059848408,-575.41,0.00029041,4]
[329009510,1718059848418,-500.0,0.00029041,4]
[329009511,1718059848428,-500.0,0.00029041,4]
[329009513,1718059848441,-550.21517405,0.00029041,4]
[329009514,1718059848452,-500.0,0.00029041,4]
[329009515,1718059848463,-524.5,0.00029041,4]
[329009516,1718059848477,-503.14329458,0.00029041,4]
[329009517,1718059848489,-7.05016529,0.00029041,4]
[329009518,1718059848506,-369.79983471,0.00029041,4]
[329009519,1718059848518,-500.0,0.00029041,4]
[329009520,1718059848528,-500.0,0.00029041,4]
[329009521,1718059848539,-321.7770381,0.00029041,4]
[329009522,1718059848552,-178.2229619,0.00029041,4]
[329009523,1718059848563,-192.15,0.00029041,4]
[329009524,1718059848573,-500.0,0.00029041,4]